bitfinex-derivatives/quotes_SOLF0:USTF0_20240824
["timestamp","ask_amount","ask_price","bid_price","bid_amount"]
[1724539398391,0.04788079,159.26,159.25,3.1383]
[1724539399891,0.04788079,159.26,159.24,3.1384]
[1724539400289,8.72788079,159.26,159.22,5.04437997]
[1724539400694,11.86608079,159.26,159.22,8.18307997]
[1724539402298,3.18608079,159.26,159.22,8.18307997]
[1724539404100,3.1383,159.25,159.22,3.18307997]
[1724539407096,0.04788079,159.26,159.22,0.04437997]
[1724539407307,8.68,159.24,159.22,0.04437997]
[1724539408298,3.1385,159.24,159.22,0.04437997]
[1724539411807,3.1387,159.23,159.22,0.04437997]
[1724539417006,8.68,159.23,159.12,37.87052954]
[1724539417205,1.2523,159.22,159.15,5.0]
[1724539417405,4.3912,159.22,159.18,3.1395]
[1724539417621,1.2523,159.22,159.16,2.78347953]
[1724539417907,0.04750184,159.21,159.17,0.04784243]
[1724539418206,4.49020184,159.21,159.17,3.18764243]
[1724539419402,4.49020184,159.21,159.18,3.1396]
[1724539421807,1.35110184,159.21,159.17,8.72784243]
[1724539422004,0.04750184,159.21,159.19,8.68]
[1724539422210,0.04750184,159.21,159.2,8.68]
[1724539422708,0.04750184,159.21,159.2,11.8192]
[1724539425905,1.2416,159.27,159.24,3.1385]
[1724539426213,1.2416,159.27,159.25,8.68]
[1724539427406,1.2416,159.27,159.25,11.8183]
[1724539431819,1.2416,159.27,159.26,3.1381]
[1724539435528,1.2416,159.27,159.25,3.1382]
[1724539438320,1.37093031,159.28,159.25,3.1382]
[1724539438524,1.37093031,159.28,159.26,3.138]
[1724539441226,4.50863031,159.28,159.24,8.72214052]
[1724539441530,4.50863031,159.28,159.24,0.04214052]
[1724539442328,4.50863031,159.28,159.24,3.18044052]
[1724539448332,3.1379,159.27,159.24,0.04214052]
[1724539448532,8.68,159.27,159.24,0.04214052]
[1724539448727,3.1382,159.26,159.24,0.04214052]
[1724539452943,3.1383,159.25,159.24,0.04214052]
[1724539453247,8.68,159.27,159.24,0.04214052]
[1724539453631,0.04223031,159.28,159.26,8.68]
[1724539454544,0.04223031,159.28,159.26,11.818]
[1724539455544,0.04223031,159.28,159.25,3.1382]
[1724539457241,0.04223031,159.28,159.26,3.138]
[1724539462946,0.04223031,159.28,159.27,11.8179]
[1724539464150,0.04223031,159.28,159.27,14.60039343]
[1724539464542,0.04223031,159.28,159.27,11.8179]
[1724539464739,0.04223031,159.28,159.27,14.59997269]
[1724539464944,3.1366,159.34,159.3,3.1371]
[1724539465145,3.1366,159.34,159.3,11.8171]
[1724539465638,3.1366,159.34,159.3,8.68]
[1724539465949,0.04579499,159.34,159.32,8.68]
[1724539466948,0.04579499,159.34,159.32,11.8168]
[1724539467248,0.04579499,159.34,159.3,0.04164393]
[1724539468343,0.04579499,159.34,159.31,3.1369]
[1724539470051,3.18229499,159.34,159.31,3.1369]
[1724539472141,3.18229499,159.34,159.3,3.17884393]
[1724539473353,8.68,159.33,159.3,0.04164393]
[1724539473951,8.68,159.32,159.21,0.3899]
[1724539474152,8.68,159.32,159.24,8.68]
[1724539474354,11.8174,159.3,159.24,8.68]
[1724539474553,11.8174,159.3,159.23,4.96]
[1724539474753,11.8174,159.3,159.24,8.68]
[1724539475056,0.04222244,159.29,159.26,3.1379]
[1724539475457,3.17972244,159.29,159.26,3.1379]
[1724539476751,3.17972244,159.29,159.25,3.17780838]
[1724539477153,3.17972244,159.29,159.25,0.03960838]
[1724539478353,3.17972244,159.29,159.26,3.138]
[1724539478750,3.17972244,159.29,159.25,0.03960838]
[1724539478956,3.17972244,159.29,159.25,3.17780838]
[1724539479358,3.17972244,159.29,159.25,0.03960838]
[1724539480363,3.17972244,159.29,159.26,3.138]
[1724539480663,0.04222244,159.29,159.26,8.68]
[1724539480960,0.04222244,159.29,159.25,0.03960838]
[1724539480961,0.04222244,159.29,159.28,11.8177]
[1724539485167,0.04222244,159.29,159.28,3.1377]
[1724539487969,0.04222244,159.29,159.28,11.8177]
[1724539488370,0.04222244,159.29,159.28,3.1377]
[1724539490281,0.04222244,159.29,159.27,3.1378]
[1724539490774,0.04222244,159.29,159.26,3.138]
[1724539494579,3.17982244,159.29,159.26,3.138]
[1724539494782,8.68,159.28,159.25,0.03960838]
[1724539495281,3.1379,159.27,159.25,0.03960838]
[1724539495484,11.8179,159.27,159.25,0.03960838]
[1724539497581,3.1381,159.26,159.25,0.03960838]
[1724539500479,8.68,159.26,159.17,60.3275071]
[1724539500681,8.68,159.24,159.18,2.78622549]
[1724539500879,3.1382,159.26,159.22,3.1388]
[1724539501079,8.68,159.27,159.2,8.68]
[1724539501280,1.3283,159.29,159.2,11.77036151]
[1724539501482,0.0443417,159.26,159.23,0.04306689]
[1724539502382,0.0443417,159.26,159.23,3.18166689]
[1724539502581,0.0443417,159.26,159.23,0.04306689]
[1724539503379,3.1825417,159.26,159.23,0.04306689]
[1724539503885,0.0443417,159.26,159.23,0.04306689]
[1724539504081,0.0443417,159.26,159.24,8.68]
[1724539504585,0.0443417,159.26,159.25,3.1383]
[1724539511285,0.0443417,159.26,159.24,3.1384]
[1724539511991,8.68,159.25,159.23,0.04306689]
[1724539512294,8.68,159.24,159.23,0.04306689]
[1724539513188,8.68,159.24,159.21,3.1389]
[1724539513690,11.8185,159.24,159.21,3.1389]
[1724539514089,11.8185,159.24,159.21,0.04121355]
[1724539518992,11.8183,159.25,159.21,3.18021355]
[1724539523297,3.1383,159.25,159.21,3.18021355]
[1724539523601,0.0443417,159.26,159.21,8.72121355]
[1724539524096,0.0443417,159.26,159.24,3.1383]
[1724539524297,0.0443417,159.26,159.21,8.72121355]
[1724539524902,0.0443417,159.26,159.23,3.1386]
[1724539525100,8.7243417,159.26,159.23,3.1386]
[1724539525302,8.68,159.24,159.21,0.04121355]
[1724539525503,8.68,159.22,159.21,0.04121355]
[1724539528900,8.68,159.22,159.17,3.1398]
[1724539529102,8.68,159.2,159.17,3.1398]
[1724539529904,8.68,159.2,159.18,3.1396]
[1724539530507,11.8193,159.2,159.16,3.1399]
[1724539531305,8.68,159.18,159.15,3.18671079]
[1724539534912,8.68,159.18,159.15,0.04651079]
[1724539535609,8.68,159.18,159.17,3.1398]
[1724539535807,11.8193,159.2,159.17,3.1398]
[1724539537810,8.68,159.18,159.15,0.04651079]
[1724539538011,8.68,159.16,159.15,0.04651079]
[1724539538208,0.04322314,159.17,159.15,3.18651079]
[1724539538411,0.04322314,159.17,159.15,0.04651079]
[1724539538917,0.04322314,159.17,159.16,3.14]
[1724539543016,8.72322314,159.17,159.15,3.18671079]
[1724539543510,8.72322314,159.17,159.15,0.04651079]
[1724539545318,0.04322314,159.17,159.15,0.04651079]
[1724539545519,8.72322314,159.17,159.15,0.04651079]
[1724539547116,8.68,159.16,159.15,0.04651079]
[1724539549423,8.68,159.16,159.05,3.92046854]
[1724539549617,8.68,159.11,159.05,0.4757]
[1724539549819,8.68,159.11,159.06,5.61635267]
[1724539550117,8.68,159.11,159.06,2.80826258]
[1724539550318,0.0411177,159.1,159.07,0.0477565]
[1724539551428,0.0411177,159.1,159.09,3.1414]
[1724539551918,0.0411177,159.1,159.08,3.1416]
[1724539551919,8.7211177,159.1,159.08,3.1416]
[1724539555524,8.7211177,159.1,159.07,0.0477565]
[1724539555525,0.0411177,159.1,159.09,3.1414]
[1724539557027,0.0411177,159.1,159.09,11.8214]
[1724539557626,1.2311,159.19,159.09,8.68]
[1724539557831,9.9111,159.19,159.12,8.68]
[1724539558323,8.68,159.17,159.14,3.1403]
[1724539558631,8.72136626,159.17,159.14,3.18043142]
[1724539559023,8.68,159.16,159.14,0.04013142]
[1724539561820,8.68,159.16,159.14,3.18053142]
[1724539562030,8.72136626,159.17,159.14,0.04013142]
[1724539562420,8.72136626,159.17,159.15,3.1402]
[1724539563628,8.68,159.16,159.14,3.18053142]
[1724539563827,8.68,159.16,159.14,0.04013142]
[1724539564332,11.8201,159.16,159.14,0.04013142]
[1724539564833,8.68,159.16,159.14,0.04013142]
[1724539565226,8.68,159.15,159.14,0.04013142]
[1724539567833,8.68,159.15,159.11,3.141]
[1724539568020,8.68,159.12,159.11,3.141]
[1724539568225,8.68,159.12,159.08,3.1415]
[1724539568226,11.8209,159.12,159.08,3.1415]
[1724539568436,8.68,159.1,159.05,69.13146299]
[1724539568831,0.04266797,159.09,159.08,3.1415]
[1724539574030,0.04266797,159.09,159.06,0.04384801]
[1724539574230,8.68,159.08,159.06,0.04384801]
[1724539574435,8.68,159.08,159.06,3.18584801]
[1724539576635,0.04266797,159.09,159.06,3.18584801]
[1724539576834,0.04266797,159.09,159.07,3.1418]
[1724539577130,0.04266797,159.09,159.06,0.04384801]
[1724539577331,0.04266797,159.09,159.08,3.1416]
[1724539578336,0.04266797,159.09,159.06,0.04384801]
[1724539579642,0.04266797,159.09,159.08,3.1416]
[1724539586343,0.04266797,159.09,159.07,3.1417]
[1724539586540,8.68,159.08,159.07,3.1417]
[1724539590251,8.68,159.08,159.06,3.18584801]
[1724539595453,8.68,159.08,159.06,0.04384801]
[1724539596055,3.1421,159.06,159.02,3.1428]
[1724539596245,8.68,159.03,159.02,3.1428]
[1724539597246,8.72589309,159.04,159.03,3.1426]
[1724539597451,0.04589309,159.04,159.03,3.1426]
[1724539599965,8.72589309,159.04,158.98,4.88]
[1724539600162,8.68,159.02,158.98,4.88]
[1724539600357,8.68,159.02,159.01,3.143]
[1724539600553,0.04589309,159.04,158.99,8.68]
[1724539600754,0.04589309,159.04,159.0,11.49312921]
[1724539601056,0.04589309,159.04,159.01,2.81312921]
[1724539601458,0.04589309,159.04,159.0,8.68]
[1724539601658,0.04589309,159.04,159.01,2.8119753]
[1724539601860,0.04589309,159.04,159.03,3.1426]
[1724539602057,8.68,159.11,159.03,8.68]
[1724539602257,8.68,159.11,159.07,3.1417]
[1724539602454,8.68,159.09,159.07,3.1417]
[1724539602857,8.68,159.09,159.06,3.142]
[1724539603058,8.72663872,159.09,159.06,3.18483267]
[1724539603364,8.68,159.08,159.06,3.18483267]
[1724539605465,8.68,159.08,159.06,0.04283267]
[1724539607361,8.68,159.08,159.06,3.18483267]
[1724539610965,8.68,159.08,159.06,0.04283267]
[1724539611167,11.8216,159.08,159.06,0.04283267]
[1724539611369,8.68,159.07,159.06,0.04283267]
[1724539611762,11.8218,159.07,159.06,0.04283267]
[1724539613268,11.8218,159.07,159.03,3.1425]
[1724539613470,8.68,159.05,159.03,3.1425]
[1724539620775,2.60286056,159.06,158.99,8.68]
[1724539620970,0.04336056,159.06,159.01,8.68]
[1724539621165,0.04336056,159.06,159.02,5.2508931]
[1724539621367,0.04336056,159.06,159.02,8.07235354]
[1724539621572,0.04336056,159.06,159.02,2.82146044]
[1724539621770,0.04336056,159.06,159.03,3.1425]
[1724539621975,8.68,159.05,159.03,3.1425]
[1724539626882,8.68,159.04,159.02,3.1428]
[1724539628478,3.18546056,159.06,159.02,3.1428]
[1724539628788,8.68,159.04,159.02,3.1428]
[1724539629684,8.68,159.05,159.03,3.1426]
[1724539632591,0.04618097,159.06,159.0,8.68]
[1724539632785,0.04618097,159.06,159.01,10.07192159]
[1724539632985,0.04618097,159.06,159.02,8.06070893]
[1724539633185,0.04618097,159.06,159.04,3.1423]
[1724539634595,0.04618097,159.06,159.05,3.1422]
[1724539635986,0.04618097,159.06,159.05,5.96071312]
[1724539636695,0.04618097,159.06,159.05,3.1422]
[1724539636891,0.04618097,159.06,159.05,5.96139555]
[1724539638100,0.04618097,159.06,159.05,21.8972155]
[1724539639204,9.9555,159.12,159.09,3.1414]
[1724539639700,1.2784,159.18,159.07,8.68]
[1724539639895,8.68,159.14,159.08,10.07483405]
[1724539640099,8.68,159.12,159.09,2.81848476]
[1724539640391,8.68,159.11,159.09,0.04256528]
[1724539640991,8.68,159.11,159.09,3.18386528]
[1724539643896,8.68,159.12,159.09,3.18386528]
[1724539644097,8.68,159.12,159.1,3.1412]
[1724539647200,8.68,159.12,159.09,3.18396528]
[1724539647503,8.68,159.12,159.09,0.04256528]
[1724539648406,8.68,159.12,159.1,3.1412]
[1724539649898,11.821,159.11,159.09,0.04256528]
[1724539650101,8.68,159.1,159.09,0.04256528]
[1724539653806,8.68,159.11,159.09,0.04256528]
[1724539655308,8.68,159.11,159.09,3.18396528]
[1724539660902,11.8211,159.11,159.09,0.04256528]
[1724539661107,8.68,159.1,159.09,0.04256528]
[1724539662211,11.8212,159.1,159.09,0.04256528]
[1724539662412,11.8212,159.1,159.02,7.77263054]
[1724539662413,8.68,159.1,159.02,7.77263054]
[1724539662617,8.68,159.07,159.03,10.09238168]
[1724539662808,8.68,159.05,159.03,2.82217698]
[1724539663115,2.6181,159.12,158.99,4.84]
[1724539663310,2.6181,159.12,159.0,8.68]
[1724539663311,8.68,159.06,159.0,8.68]
[1724539663612,8.68,159.06,159.01,10.0927631]
[1724539663813,8.68,159.06,159.02,10.0927631]
[1724539664015,8.68,159.06,159.03,2.82462522]
[1724539664315,8.68,159.06,159.04,2.82462522]
[1724539664514,8.68,159.06,159.03,3.1426]
[1724539664717,8.68,159.06,159.04,2.8230372]
[1724539664916,8.68,159.06,159.03,3.1426]
[1724539665115,0.04346722,159.07,159.04,2.82389658]
[1724539665320,0.04346722,159.07,159.03,3.1426]
[1724539665619,8.68,159.06,159.04,2.82444783]
[1724539665917,8.68,159.06,159.03,3.1426]
[1724539667513,8.68,159.05,158.96,3.42712087]
[1724539667717,8.68,159.03,158.97,4.84]
[1724539668216,0.04180144,159.02,158.97,4.84]
[1724539668614,0.04180144,159.02,158.98,13.93982186]
[1724539669319,0.04180144,159.02,159.01,3.143]
[1724539671609,0.04180144,159.02,159.01,11.823]
[1724539672823,0.04180144,159.02,159.01,3.143]
[1724539673413,4.84,159.11,159.02,3.1427]
[1724539673414,3.142,159.07,159.02,3.1427]
[1724539673724,8.68,159.04,159.03,30.08620517]
[1724539674121,8.68,159.04,159.03,22.00017099]
[1724539674424,2.71356401,159.04,159.03,22.00017099]
[1724539675930,4.84,159.1,159.03,41.61194573]
[1724539676118,2.64487643,159.05,159.04,41.61194573]
[1724539676319,2.64487643,159.05,159.02,3.1427]
[1724539676926,2.6931555,159.05,159.02,3.1907062]
[1724539680226,0.04827907,159.05,159.03,3.1426]
[1724539680621,8.72827907,159.05,159.02,0.0480062]
[1724539681022,8.68,159.03,159.02,0.0480062]
[1724539685936,3.19057907,159.05,159.02,0.0480062]
[1724539686135,8.68,159.04,159.02,0.0480062]
[1724539689941,0.04827907,159.05,159.02,0.0480062]
[1724539690237,8.72827907,159.05,159.02,0.0480062]
[1724539690542,8.68,159.03,159.02,0.0480062]
[1724539703950,0.04827907,159.05,159.02,0.0480062]
[1724539704151,8.68,159.03,159.02,0.0480062]
[1724539708151,8.68,159.03,158.94,57.81118002]
[1724539708359,8.68,158.98,158.95,2.76820673]
[1724539708553,8.68,158.98,158.94,57.81118002]
[1724539708748,8.68,158.96,158.88,3.7199]
[1724539708955,8.68,158.96,158.9,4.84]
[1724539709158,0.04624428,158.95,158.91,0.04117556]
[1724539709360,0.04624428,158.95,158.93,3.1445]
[1724539711353,0.04624428,158.95,158.92,3.1448]
[1724539711557,0.04624428,158.95,158.91,0.04117556]
[1724539711958,8.68,158.94,158.91,0.04117556]
[1724539713057,0.04624428,158.95,158.91,0.04117556]
[1724539713960,0.04624428,158.95,158.92,3.1446]
[1724539714255,0.04624428,158.95,158.91,0.04117556]
[1724539714256,0.04624428,158.95,158.91,8.72117556]
[1724539714656,0.04624428,158.95,158.94,3.1444]
[1724539718961,0.04624428,158.95,158.94,11.8244]
[1724539719255,0.04624428,158.95,158.94,3.1444]
[1724539720863,3.6454,159.04,158.94,3.1444]
[1724539720864,1.2052,159.04,158.94,11.44610139]
[1724539721055,1.2052,159.04,158.97,8.68]
[1724539721259,1.2052,159.04,158.97,13.5]
[1724539721863,0.04349689,159.02,158.99,3.18852487]
[1724539724260,0.04349689,159.02,159.0,3.1432]
[1724539724463,0.04349689,159.02,158.99,0.04532487]
[1724539726266,0.04349689,159.02,159.0,3.1432]
[1724539727274,6.56846476,159.21,159.01,8.68]
[1724539727464,8.68,159.16,159.08,8.68]
[1724539727668,3.7988,159.17,159.09,8.68]
[1724539727870,8.68,159.16,159.09,8.68]
[1724539728365,0.04337254,159.14,159.12,3.1408]
[1724539728564,0.04337254,159.14,159.12,8.68]
[1724539728969,0.04337254,159.14,159.13,3.1406]
[1724539729471,0.04337254,159.14,159.12,3.1406]
[1724539729674,0.04337254,159.14,159.11,13.54540992]
[1724539731374,0.04337254,159.14,159.13,3.1406]
[1724539731970,0.04337254,159.14,159.13,11.8206]
[1724539739581,0.04337254,159.14,159.13,3.1406]
[1724539743386,0.04337254,159.14,159.12,3.1408]
[1724539743578,8.72337254,159.14,159.11,0.04540992]
[1724539744691,8.72337254,159.14,159.11,3.18630992]
[1724539744889,0.04337254,159.14,159.11,3.18630992]
[1724539745884,0.04337254,159.14,159.12,3.1408]
[1724539748787,0.04337254,159.14,159.13,3.1406]
[1724539749788,0.04337254,159.14,159.12,3.1408]
[1724539752679,0.04337254,159.14,159.11,3.18640992]
[1724539753687,0.04337254,159.14,159.12,3.1408]
[1724539755587,0.04337254,159.14,159.11,0.04540992]
[1724539755796,3.1408,159.13,159.11,0.04540992]
[1724539756893,4.44567254,159.14,159.11,3.18640992]
[1724539757095,1.30527254,159.14,159.11,3.18640992]
[1724539757394,0.04337254,159.14,159.11,8.72540992]
[1724539757993,0.04337254,159.14,159.12,8.68]
[1724539758192,0.04337254,159.14,159.13,3.1406]
[1724539762291,0.04337254,159.14,159.13,11.8206]
[1724539763700,25.14,159.29,159.18,3.1395]
[1724539763900,3.1388,159.23,159.18,3.1395]
[1724539764404,9.9642,159.24,159.19,3.1393]
[1724539764702,0.04829537,159.23,159.2,0.04447698]
[1724539764904,8.68,159.21,159.2,0.04447698]
[1724539765297,3.1391,159.21,159.2,0.04447698]
[1724539765500,9.9018,159.22,159.2,0.04447698]
[1724539765804,13.0408,159.22,159.2,0.04447698]
[1724539766000,9.9018,159.22,159.2,0.04447698]
[1724539766998,1.2218,159.22,159.2,0.04447698]
[1724539767404,1.2218,159.22,159.2,3.18367698]
[1724539770494,1.2218,159.22,159.2,0.04447698]
[1724539775507,8.68,159.21,159.2,0.04447698]
[1724539776303,11.819,159.21,159.2,0.04447698]
[1724539779812,11.819,159.21,159.04,34.72]
[1724539779813,8.68,159.21,159.04,34.72]
[1724539780005,8.68,159.18,159.11,8.68]
[1724539780405,11.8198,159.18,159.14,3.1403]
[1724539780807,3.1399,159.17,159.14,0.03988021]
[1724539781002,8.68,159.16,159.14,0.03988021]
[1724539781817,8.68,159.15,159.01,1.2081]
[1724539782108,8.68,159.11,159.05,80.49327984]
[1724539782300,8.68,159.11,159.07,3.1416]
[1724539782807,8.72169686,159.11,159.07,3.18264308]
[1724539783906,8.72169686,159.11,159.08,3.1416]
[1724539786911,0.04169686,159.11,159.08,3.1416]
[1724539790617,0.04169686,159.11,159.08,8.68]
[1724539791220,0.04169686,159.11,159.09,3.1412]
[1724539791411,0.04169686,159.11,159.08,8.68]
[1724539792522,0.04169686,159.11,159.09,3.1414]
[1724539797515,0.04169686,159.11,159.07,0.04104308]
[1724539797716,0.04169686,159.11,159.1,3.1412]
[1724539801421,0.04169686,159.11,159.07,0.04104308]
[1724539802016,0.04169686,159.11,159.08,3.1416]
[1724539802425,0.04169686,159.11,159.07,0.04104308]
[1724539802725,0.04169686,159.11,159.1,3.1412]
[1724539806827,0.04169686,159.11,159.1,11.8212]
[1724539811127,11.162,159.19,159.14,3.1404]
[1724539811832,11.162,159.19,159.15,3.1402]
[1724539812131,11.20521938,159.19,159.15,3.18491761]
[1724539812332,2.52521938,159.19,159.15,0.04471761]
[1724539812535,11.20521938,159.19,159.15,0.04471761]
[1724539812735,9.97121938,159.19,159.15,0.04471761]
[1724539813131,9.97121938,159.19,159.16,3.1398]
[1724539813332,1.29121938,159.19,159.16,3.1398]
[1724539814231,1.29121938,159.19,159.17,3.1398]
[1724539814536,0.04321938,159.19,159.15,0.04471761]
[1724539814738,0.04321938,159.19,159.16,8.68]
[1724539815430,0.04321938,159.19,159.17,3.1398]
[1724539820737,8.72321938,159.19,159.15,0.04471761]
[1724539820942,8.68,159.16,159.15,0.04471761]
[1724539821133,11.82,159.16,159.15,0.04471761]
[1724539821730,11.82,159.16,159.05,65.71057984]
[1724539821731,3.1406,159.14,159.1,3.1412]
[1724539821933,8.68,159.13,159.1,3.1412]
[1724539822130,11.8206,159.14,159.08,8.68]
[1724539822339,11.8206,159.14,159.11,3.141]
[1724539822941,11.86809729,159.14,159.11,3.18777235]
[1724539823636,11.86809729,159.14,159.11,0.04677235]
[1724539824840,11.8207,159.13,159.11,0.04677235]
[1724539830742,3.1408,159.12,159.11,0.04677235]
[1724539830938,3.1408,159.12,159.08,3.1416]
[1724539830939,8.68,159.1,159.08,3.1416]
[1724539833145,8.68,159.1,159.07,3.18898601]
[1724539833347,8.68,159.09,159.07,0.04718601]
[1724539833848,11.8215,159.09,159.07,0.04718601]
[1724539835447,3.1416,159.08,159.07,0.04718601]
[1724539836047,3.1418,159.07,159.03,3.1424]
[1724539836249,8.68,159.06,159.03,3.1424]
[1724539836850,11.822,159.06,159.03,3.1424]
[1724539837039,11.822,159.06,159.01,7.89952322]
[1724539837040,8.68,159.04,158.99,75.01785049]
[1724539837245,8.68,159.04,158.99,61.59785049]
[1724539837450,8.68,159.04,159.0,3.17677118]
[1724539837651,8.68,159.04,159.01,3.1429]
[1724539838655,11.8224,159.04,159.01,3.1429]
[1724539839250,11.8224,159.04,159.0,6.31987118]
[1724539839959,11.8224,159.04,159.01,3.143]
[1724539840353,11.8224,159.04,159.0,3.17677118]
[1724539840758,8.68,159.03,159.0,6.31977118]
[1724539841147,11.8226,159.03,159.0,3.143]
[1724539841350,8.68,159.01,158.98,3.1434]
[1724539841548,8.71993681,159.01,158.98,3.1434]
[1724539843155,0.03993681,159.01,158.99,3.1432]
[1724539843353,0.03993681,159.01,158.97,4.74]
[1724539843756,0.03993681,159.01,159.0,3.1432]
[1724539844561,0.03993681,159.01,159.0,15.00042328]
[1724539845565,0.03993681,159.01,159.0,11.8232]
[1724539846269,1.2919,159.08,159.0,11.8232]
[1724539846270,9.9719,159.08,159.02,3.1426]
[1724539846566,11.8221,159.06,159.02,3.1426]
[1724539846757,8.68,159.06,158.99,3.1432]
[1724539847063,8.68,159.04,158.98,8.68]
[1724539847363,0.04013862,159.03,158.99,0.04191666]
[1724539848362,0.04013862,159.03,159.01,3.1429]
[1724539849466,0.04013862,159.03,158.99,8.72191666]
[1724539850063,0.04013862,159.03,159.01,3.1428]
[1724539850269,0.04013862,159.03,158.99,8.72191666]
[1724539850471,0.04013862,159.03,159.02,8.68]
[1724539850776,0.04013862,159.03,159.02,11.8228]
[1724539852368,11.8213,159.1,159.05,3.142]
[1724539853474,0.04322165,159.09,159.06,0.04299043]
[1724539853869,11.86472165,159.09,159.06,0.04299043]
[1724539854072,3.18472165,159.09,159.06,0.04299043]
[1724539855775,3.18472165,159.09,159.06,3.18499043]
[1724539856080,0.04322165,159.09,159.06,0.04299043]
[1724539856881,0.04322165,159.09,159.06,3.18489043]
[1724539858379,8.72322165,159.09,159.06,3.18489043]
[1724539859480,11.86462165,159.09,159.06,3.18489043]
[1724539863878,8.72322165,159.09,159.06,3.18489043]
[1724539865389,11.86462165,159.09,159.06,3.18489043]
[1724539865585,8.72322165,159.09,159.06,0.04299043]
[1724539865791,8.68,159.07,159.06,0.04299043]
[1724539865995,8.68,159.07,158.88,34.72]
[1724539866188,8.68,159.03,158.97,8.68]
[1724539867091,0.04535247,159.02,158.98,0.04132579]
[1724539868389,0.04535247,159.02,159.0,3.143]
[1724539871699,0.04535247,159.02,159.01,3.143]
[1724539872195,0.04535247,159.02,159.0,3.1432]
[1724539872793,8.72535247,159.02,159.0,3.1432]
[1724539874895,8.72535247,159.02,158.99,3.1433]
[1724539875488,8.72535247,159.02,158.98,0.04132579]
[1724539875489,8.68,159.0,158.98,3.18492579]
[1724539879992,8.68,158.99,158.98,0.04132579]
[1724539882301,11.8234,158.99,158.98,0.04132579]
[1724539882792,8.68,158.99,158.98,0.04132579]
[1724539885797,11.8234,158.99,158.98,0.04132579]
[1724539886500,8.68,158.99,158.86,25.12]
[1724539886797,8.68,158.95,158.88,8.68]
[1724539887600,0.04246304,158.93,158.88,8.68]
[1724539888813,0.04246304,158.93,158.92,3.1448]
[1724539895406,0.04246304,158.93,158.92,11.8248]
[1724539900519,0.04246304,158.93,158.92,3.1448]
[1724539905116,8.72246304,158.93,158.88,4.72]
[1724539905322,8.72246304,158.93,158.87,4.72]
[1724539905521,8.72246304,158.93,158.9,3.145]
[1724539912522,0.04246304,158.93,158.89,8.68]
[1724539912725,0.04246304,158.93,158.91,8.68]
[1724539913329,0.04246304,158.93,158.92,3.1448]
[1724539913921,0.04246304,158.93,158.92,11.8248]
[1724539914125,1.2936,159.0,158.97,3.1437]
[1724539915028,1.34158666,159.0,158.97,3.1893358]
[1724539915224,1.34158666,159.0,158.97,0.0456358]
[1724539916131,4.48478666,159.0,158.97,0.0456358]
[1724539916729,1.34158666,159.0,158.97,3.1893358]
[1724539916935,0.04798666,159.0,158.97,0.0456358]
[1724539917430,0.04798666,159.0,158.99,3.1434]
[1724539919334,0.04798666,159.0,158.99,11.8234]
[1724539919634,8.68,159.09,158.99,13.4]
[1724539919833,8.68,159.09,159.02,8.68]
[1724539920039,7.2466,159.12,159.02,8.68]
[1724539920228,2.5266,159.12,159.02,8.68]
[1724539920435,8.68,159.1,159.03,8.68]
[1724539920631,8.68,159.08,159.05,0.04771484]
[1724539920832,8.68,159.06,159.05,0.04771484]
[1724539921440,11.8222,159.06,158.97,10.0125]
[1724539921742,8.68,159.03,159.01,3.143]
[1724539922947,8.68,159.02,159.0,0.04565391]
[1724539923645,8.72066783,159.04,159.0,3.18885391]
[1724539926349,8.68,159.01,159.0,3.18885391]
[1724539926648,8.68,159.01,159.0,0.04565391]
[1724539926951,8.68,159.01,158.92,9.9313]
[1724539927250,8.68,158.99,158.95,4.7]
[1724539927453,8.68,159.02,158.95,4.7]
[1724539927745,11.8228,159.02,158.97,3.1438]
[1724539927939,0.04651327,159.01,158.97,3.1438]
[1724539929644,0.04651327,159.01,158.98,3.1435]
[1724539930945,8.68,158.99,158.84,6.2925]